bitfinex-derivatives/quotes_SOLF0:USTF0_20220102
["timestamp","ask_amount","ask_price","bid_price","bid_amount"]
[1641094285568,3.95911565,178.56,178.53,0.63663686]
[1641094286066,5.60035842,178.57,178.53,0.63663686]
[1641094286668,5.60035842,178.57,178.53,5.11746379]
[1641094287171,3.95911818,178.56,178.54,0.63663686]
[1641094287771,5.60035842,178.57,178.54,0.63663686]
[1641094288472,3.95911146,178.56,178.54,0.63663686]
[1641094288972,5.60035842,178.57,178.54,0.63663686]
[1641094289472,3.95910659,178.56,178.54,0.63663686]
[1641094290272,5.60035842,178.57,178.54,0.63663686]
[1641094290674,3.95910408,178.56,178.54,0.63663686]
[1641094291271,5.60035842,178.57,178.54,0.63663686]
[1641094292375,3.95904543,178.56,178.54,0.63663686]
[1641094292774,5.60035842,178.57,178.54,0.63663686]
[1641094293574,17.52567213,178.57,178.54,0.63663686]
[1641094297379,5.60035842,178.57,178.54,0.63663686]
[1641094298180,17.53592467,178.57,178.54,0.63663686]
[1641094298582,5.60035842,178.57,178.54,0.63663686]
[1641094298781,3.18308019,178.56,178.54,0.63663686]
[1641094299481,3.18308019,178.56,178.52,0.63663686]
[1641094300081,11.92152413,178.55,178.52,0.63663686]
[1641094300983,3.18308019,178.54,178.51,0.63663686]
[1641094301585,17.80852413,178.55,178.51,0.63663686]
[1641094303190,11.92152413,178.55,178.51,0.63663686]
[1641094304192,11.92152413,178.55,178.51,5.11806749]
[1641094304795,11.92152413,178.55,178.52,0.63663686]
[1641094305294,11.92152413,178.56,178.52,0.63663686]
[1641094305796,3.18333526,178.55,178.52,0.63663686]
[1641094306195,11.92152413,178.56,178.52,0.63663686]
[1641094306596,3.1832614,178.55,178.52,0.63663686]
[1641094310504,11.92152413,178.56,178.52,4.61662465]
[1641094310903,11.92152413,178.56,178.53,0.63663686]
[1641094311103,11.93562138,178.57,178.53,4.61662465]
[1641094311512,11.93562138,178.57,178.54,0.63663686]
[1641094311906,7.42531909,178.58,178.54,0.63663686]
[1641094312207,3.1829194,178.57,178.54,0.63663686]
[1641094312405,15.11852639,178.57,178.54,0.63663686]
[1641094312709,11.93560699,178.57,178.54,5.11734683]
[1641094313206,11.93560699,178.57,178.55,0.63663686]
[1641094313406,5.651,178.57,178.55,0.63663686]
[1641094313606,8.651,178.57,178.55,0.63663686]
[1641094313807,3.18316091,178.56,178.55,0.63663686]
[1641094314206,3.18316091,178.56,178.54,0.63663686]
[1641094314608,3.18316091,178.56,178.52,0.63663686]
[1641094314810,11.93685151,178.55,178.52,0.63663686]
[1641094315408,32.0395,178.57,178.52,0.63663686]
[1641094315609,11.93742752,178.54,178.52,0.63663686]
[1641094316208,29.0395,178.57,178.52,0.63663686]
[1641094316410,9.21579596,178.56,178.51,5.85063686]
[1641094316909,3.18343172,178.55,178.52,0.63663686]
[1641094317311,11.93761606,178.54,178.52,0.63663686]
[1641094317811,11.93761606,178.54,178.51,0.63663686]
[1641094318010,29.45526687,178.56,178.51,0.63663686]
[1641094318212,1.79047687,178.54,178.51,5.09963686]
[1641094318812,4.96929513,178.55,178.51,5.09963686]
[1641094319113,1.78586732,178.55,178.52,0.63663686]
[1641094319311,3.18347383,178.54,178.52,0.63663686]
[1641094319512,4.96934115,178.54,178.52,0.63663686]
[1641094320213,1.78586732,178.53,178.52,0.63663686]
[1641094320817,11.90637538,178.55,178.52,0.63663686]
[1641094321016,3.9685436,178.53,178.52,0.63663686]
[1641094321615,49.50587538,178.57,178.52,5.11775649]
[1641094322215,3.9682189,178.55,178.53,0.63663686]
[1641094323023,37.5995,178.57,178.53,0.63663686]
[1641094323220,8.56,178.57,178.53,0.63663686]
[1641094323421,8.56,178.57,178.54,4.48061931]
[1641094324022,3.9680264,178.55,178.54,4.48061931]
[1641094324723,8.56,178.57,178.54,4.48061931]
[1641094325321,3.96803616,178.55,178.54,4.48061931]
[1641094326221,8.56,178.57,178.54,4.48061931]
[1641094327121,3.96795811,178.56,178.54,4.48061931]
[1641094327923,1.78492441,178.58,178.54,4.48061931]
[1641094328425,27.66479,178.59,178.54,8.4606071]
[1641094328622,11.90637538,178.58,178.54,8.4606071]
[1641094329222,1.78960414,178.58,178.54,8.4606071]
[1641094329824,27.66479,178.59,178.54,8.4606071]
[1641094330025,11.9348748,178.58,178.54,8.4606071]
[1641094330427,1.78955255,178.58,178.54,8.4606071]
[1641094331129,3.97825785,178.55,178.54,8.4606071]
[1641094331531,39.59956354,178.59,178.56,0.50195792]
[1641094331729,39.59956354,178.59,178.56,5.32195792]
[1641094331928,39.59956354,178.59,178.56,4.82]
[1641094332529,1.75373196,178.58,178.56,4.82]
[1641094333332,5.59941766,178.6,178.56,4.82]
[1641094333836,3.18273828,178.59,178.56,4.82]
[1641094334036,16.87123728,178.59,178.56,4.82]
[1641094334735,13.688499,178.59,178.56,4.82]
[1641094337135,9.11821514,178.6,178.56,9.30018166]
[1641094337736,15.11704798,178.59,178.56,9.30018166]
[1641094338339,11.93444832,178.59,178.56,9.30018166]
[1641094338537,1.78940543,178.58,178.56,9.30018166]
[1641094339138,11.93448832,178.59,178.56,9.30018166]
[1641094339339,11.93448832,178.59,178.57,0.63652279]
[1641094340340,9.11821984,178.6,178.57,0.63652279]
[1641094340942,3.18268531,178.59,178.57,0.63652279]
[1641094341141,23.71687616,178.59,178.57,0.63652279]
[1641094341543,8.78225974,178.59,178.57,0.63652279]
[1641094341743,1.78941013,178.58,178.57,0.63652279]
[1641094341941,4.97209544,178.58,178.54,0.63652279]
[1641094342342,1.78941013,178.58,178.54,0.63652279]
[1641094342543,13.72511098,178.58,178.54,0.63652279]
[1641094342843,3.18297468,178.57,178.54,0.63652279]
[1641094343045,15.11867553,178.57,178.54,0.63652279]
[1641094343843,11.93570085,178.57,178.54,0.63652279]
[1641094344043,1.78941013,178.56,178.54,0.63652279]
[1641094344543,11.93581766,178.57,178.54,0.63652279]
[1641094345745,9.08293847,178.58,178.54,0.63652279]
[1641094345946,9.08293847,178.58,178.54,7.13152279]
[1641094346147,1.75412876,178.58,178.54,7.13152279]
[1641094346347,13.68942011,178.58,178.54,7.13152279]
[1641094346545,13.68942011,178.58,178.55,0.63652279]
[1641094346747,27.66479,178.59,178.55,0.63652279]
[1641094347445,16.87192537,178.58,178.55,0.63652279]
[1641094347847,27.66479,178.59,178.55,0.63652279]
[1641094348049,1.75391745,178.57,178.55,0.63652279]
[1641094348548,3.18306425,178.58,178.55,0.63652279]
[1641094348750,11.93620532,178.57,178.52,0.63652279]
[1641094349351,3.18309042,178.56,178.52,0.63652279]
[1641094350054,15.11929574,178.56,178.52,0.63652279]
[1641094350452,11.93620532,178.56,178.52,0.63652279]
[1641094350653,1.7542709,178.55,178.52,0.63652279]
[1641094351154,7.33054581,178.58,178.52,0.63652279]
[1641094351356,11.93586657,178.57,178.53,2.2244755]
[1641094351654,11.93586657,178.57,178.53,8.5284755]
[1641094351856,3.18299971,178.57,178.53,8.5284755]
[1641094352259,3.18299971,178.57,178.54,0.63652279]
[1641094352454,1.75414669,178.56,178.54,0.63652279]
[1641094353055,11.9363891,178.56,178.54,0.63652279]
[1641094353255,11.9363891,178.56,178.52,0.63652279]
[1641094353956,7.33054581,178.58,178.52,0.63652279]
[1641094354158,27.66479,178.56,178.52,0.63652279]
[1641094354360,5.60098577,178.55,178.52,0.63652279]
[1641094354760,3.18362612,178.54,178.49,0.63652279]
[1641094354960,11.93827937,178.53,178.49,0.63652279]
[1641094355560,1.75445758,178.53,178.5,2.22440714]
[1641094356159,1.75445758,178.53,178.51,0.63652279]
[1641094356359,1.7548434,178.54,178.51,0.63652279]
[1641094356963,3.18367443,178.53,178.5,0.63652279]
[1641094357161,15.12207026,178.53,178.5,0.63652279]
[1641094357761,11.93839583,178.53,178.5,0.63652279]
[1641094357962,1.75505769,178.52,178.48,0.63652279]
[1641094358462,11.93844026,178.53,178.49,2.22438971]
[1641094358862,11.93844026,178.53,178.5,0.63652279]
[1641094359965,13.69256272,178.55,178.51,2.22438971]
[1641094360466,3.18352831,178.54,178.52,0.63652279]
[1641094361067,15.12100065,178.54,178.52,0.63652279]
[1641094361468,11.93747234,178.54,178.5,0.63652279]
[1641094361666,9.08771187,178.55,178.5,0.63652279]
[1641094362168,36.75250187,178.55,178.5,0.63652279]
[1641094362366,3.18355679,178.54,178.5,0.63652279]
[1641094362567,15.12164208,178.54,178.5,0.63652279]
[1641094362868,11.93808529,178.54,178.5,0.63652279]
[1641094363268,1.75509038,178.53,178.5,0.63652279]
[1641094363669,13.69302137,178.54,178.5,0.63652279]
[1641094363869,13.69302137,178.54,178.5,5.44352279]
[1641094364568,13.69302137,178.54,178.51,0.63652279]
[1641094364770,27.66479,178.55,178.51,0.63652279]
[1641094364968,39.60229093,178.55,178.51,0.63652279]
[1641094365568,4.93822725,178.54,178.51,0.63652279]
[1641094366069,1.75474369,178.54,178.51,0.63652279]
[1641094366269,1.75481782,178.53,178.51,0.63652279]
[1641094366671,1.75481782,178.53,178.51,5.1178251]
[1641094366871,1.75483741,178.54,178.51,5.1178251]
[1641094367073,1.75483741,178.54,178.53,4.48096634]
[1641094367672,31.54888477,178.58,178.53,5.11748913]
[1641094367873,11.93596144,178.57,178.53,5.11748913]
[1641094368072,15.11896207,178.57,178.54,0.63652279]
[1641094368477,1.7527099,178.56,178.54,0.63652279]
[1641094369173,1.75266708,178.57,178.54,0.63652279]
[1641094369373,1.75266708,178.57,178.54,6.64952279]
[1641094369778,27.66479,178.58,178.54,6.64952279]
[1641094369975,27.66479,178.58,178.55,0.63652279]
[1641094370375,1.75242527,178.57,178.55,0.63652279]
[1641094370976,27.66479,178.58,178.55,0.63652279]
[1641094371476,1.752417,178.57,178.55,0.63652279]
[1641094372180,27.66479,178.58,178.55,0.63652279]
[1641094373482,1.75254752,178.57,178.55,0.63652279]
[1641094373780,4.9355367,178.57,178.55,0.63652279]
[1641094373981,3.18298918,178.57,178.55,0.63652279]
[1641094374782,1.75260704,178.56,178.55,0.63652279]
[1641094375385,3.18298918,178.57,178.55,0.63652279]
[1641094375583,39.59084034,178.58,178.55,0.63652279]
[1641094375785,3.0,178.57,178.55,0.63652279]
[1641094375984,1.75294118,178.56,178.55,0.63652279]
[1641094376184,4.93640758,178.56,178.51,0.63652279]
[1641094376584,11.92605034,178.54,178.5,0.63652279]
[1641094377485,1.75348435,178.54,178.5,0.63652279]
[1641094377985,41.74845034,178.56,178.5,0.63652279]
[1641094378184,1.75318864,178.55,178.5,7.33252279]
[1641094378583,41.74845034,178.56,178.5,7.33252279]
[1641094378784,41.74845034,178.56,178.51,0.63652279]
[1641094379187,3.18332378,178.55,178.51,0.63652279]
[1641094379585,4.93651616,178.55,178.51,0.63652279]
[1641094380085,1.75314662,178.54,178.51,0.63652279]
[1641094381086,1.75459399,178.55,178.51,0.63652279]
[1641094381385,11.92605034,178.55,178.51,0.63652279]
[1641094382085,1.75468194,178.55,178.51,0.63652279]
[1641094382586,11.93736425,178.55,178.5,0.63652279]
[1641094383187,1.75469834,178.55,178.51,2.22442535]
[1641094383889,29.8224,178.56,178.52,0.63652279]
[1641094384088,11.93735135,178.55,178.52,0.63652279]
[1641094384289,15.12075735,178.55,178.52,0.63652279]
[1641094384487,4.93810859,178.55,178.52,0.63652279]
[1641094384691,1.75470259,178.55,178.52,0.63652279]
[1641094385088,1.75470259,178.55,178.5,0.63652279]
[1641094385290,11.93714219,178.55,178.5,0.63652279]
[1641094385990,29.8224,178.56,178.5,0.63652279]
[1641094386193,1.75467225,178.55,178.51,2.22442772]
[1641094386391,4.93795756,178.55,178.51,2.22442772]
[1641094386591,4.93795756,178.55,178.51,6.70579658]
[1641094386796,29.8224,178.56,178.52,0.63652279]
[1641094386991,29.8224,178.56,178.53,4.48092381]
[1641094387191,45.18124956,178.57,178.53,4.48092381]
[1641094387391,1.7513466,178.55,178.53,4.48092381]
[1641094387591,1.7513466,178.55,178.54,0.63652279]
[1641094387993,3.18312106,178.56,178.54,0.63652279]
[1641094388493,17.51645956,178.57,178.54,0.63652279]
[1641094388691,1.75132825,178.55,178.54,0.63652279]
[1641094389391,1.75126783,178.56,178.54,0.63652279]
[1641094389791,17.51645956,178.57,178.54,0.63652279]
[1641094390394,4.93435464,178.56,178.54,0.63652279]
[1641094390796,1.75129505,178.56,178.54,0.63652279]
[1641094391199,1.75129133,178.55,178.54,0.63652279]
[1641094391999,1.75126295,178.56,178.54,0.63652279]
[1641094392701,5.60035842,178.57,178.55,4.4804469]
[1641094393198,5.60035842,178.57,178.56,0.63652279]
[1641094396205,5.60035842,178.57,178.56,5.23952279]
[1641094396407,11.91610114,178.59,178.56,5.23952279]
[1641094396806,11.91610114,178.59,178.57,0.63652279]
[1641094397005,41.44358066,178.62,178.57,0.63652279]
[1641094397006,11.91610114,178.61,178.57,0.63652279]
[1641094397606,15.09877246,178.6,178.57,0.63652279]
[1641094398107,3.18267132,178.59,178.57,0.63652279]
[1641094398510,15.09877246,178.59,178.57,0.63652279]
[1641094399109,3.18267132,178.58,178.57,0.63652279]
[1641094399811,3.18267132,178.59,178.57,0.63652279]
[1641094404615,3.18267132,178.59,178.56,0.63652279]
[1641094409025,1.74787878,178.58,178.56,0.63652279]
[1641094409625,3.96471397,178.57,178.56,0.63652279]
[1641094410129,57.54479,178.6,178.56,0.63652279]
[1641094410326,1.74777181,178.59,178.56,0.63652279]
[1641094410927,3.96465839,178.57,178.56,0.63652279]
[1641094411328,1.74777181,178.59,178.56,0.63652279]
[1641094412027,3.96465887,178.57,178.56,0.63652279]
[1641094412528,1.74777181,178.59,178.56,0.63652279]
[1641094412729,6.387,178.57,178.56,0.63652279]
[1641094413330,8.13477181,178.57,178.56,0.63652279]
[1641094413929,11.31777881,178.57,178.56,0.63652279]
[1641094417135,9.570007,178.57,178.56,0.63652279]
[1641094417531,6.387,178.57,178.56,0.63652279]
[1641094417733,27.66479,178.58,178.56,0.63652279]
[1641094417932,1.75031594,178.57,178.56,0.63652279]
[1641094418431,27.66479,178.58,178.56,0.63652279]
[1641094418833,3.1830322,178.57,178.56,0.63652279]
[1641094419033,4.93361823,178.57,178.56,0.63652279]
[1641094422438,3.1830322,178.57,178.56,0.63652279]
[1641094423039,4.93366137,178.57,178.56,0.63652279]
[1641094424338,4.93366137,178.57,178.56,5.72952279]
[1641094428742,16.84976251,178.57,178.56,5.72952279]
[1641094428943,13.66673031,178.57,178.56,5.72952279]
[1641094430146,27.66479,178.58,178.56,5.72952279]
[1641094430345,5.59957443,178.59,178.56,5.72952279]
[1641094430544,5.59957443,178.59,178.57,4.48003383]
[1641094430745,3.18274081,178.58,178.57,5.11655662]
[1641094431145,29.88,178.6,178.57,5.11655662]
[1641094431347,59.21367477,178.61,178.57,5.11655662]
[1641094431547,1.75413156,178.58,178.57,4.48003383]
[1641094432049,8.78260434,178.58,178.56,5.093]
[1641094432249,8.78260434,178.58,178.55,3.97184867]
[1641094432448,3.18271634,178.57,178.55,3.97184867]
[1641094433050,4.9368479,178.57,178.52,8.45303253]
[1641094433451,1.75413156,178.57,178.52,8.45303253]
[1641094433851,3.18307846,178.56,178.52,8.45303253]
[1641094434752,1.75413156,178.55,178.52,8.45303253]
[1641094435354,3.97712197,178.53,178.52,8.45303253]
[1641094435855,1.75358941,178.57,178.52,10.67656029]
[1641094436453,3.18309775,178.56,178.52,10.67656029]
[1641094436654,3.18309775,178.56,178.52,8.45303253]
[1641094436857,3.97712338,178.53,178.52,8.45303253]
[1641094437254,3.18309775,178.56,178.52,8.45303253]
[1641094437454,1.75358941,178.55,178.52,4.48118386]
[1641094437855,36.264678,178.58,178.51,3.97184867]
[1641094438056,3.9770962,178.53,178.52,3.97184867]
[1641094438558,5.6012995,178.54,178.52,3.97184867]
[1641094438756,5.6012995,178.54,178.49,5.37842623]
[1641094438757,4.93849966,178.53,178.49,5.37842623]
[1641094439256,3.18381735,178.52,178.49,5.37842623]
[1641094439657,4.93849966,178.52,178.49,5.37842623]
[1641094440062,1.75468231,178.52,178.49,5.37842623]
[1641094440262,1.75468231,178.51,178.49,5.37842623]
[1641094440859,9.08593696,178.53,178.49,5.37842623]
[1641094441564,3.97753714,178.51,178.5,6.19533443]
[1641094442164,27.66479,178.54,178.5,6.19533443]
[1641094442867,3.97749522,178.51,178.5,6.19533443]
[1641094443366,27.66479,178.54,178.5,6.19533443]
[1641094444366,3.97915868,178.51,178.5,6.19533443]
[1641094444967,27.66479,178.54,178.5,6.19533443]
[1641094445667,3.97915547,178.51,178.5,6.19533443]
[1641094446169,5.60082892,178.55,178.5,6.19533443]
[1641094446769,5.60082892,178.55,178.51,0.63667147]
[1641094447272,33.26561892,178.55,178.51,0.63667147]
[1641094447771,5.60082892,178.55,178.52,4.48127064]
[1641094447973,13.69256204,178.54,178.52,10.17827064]
[1641094448469,5.60082892,178.55,178.53,0.63667147]
[1641094449271,1.75449197,178.54,178.53,0.63667147]
[1641094449672,5.60082892,178.55,178.53,0.63667147]
[1641094450578,1.75448231,178.54,178.53,0.63667147]
[1641094451377,5.60082892,178.55,178.53,0.63667147]
[1641094451778,1.75434653,178.54,178.53,0.63667147]
[1641094452679,5.60082892,178.55,178.53,0.63667147]
[1641094453181,1.75435321,178.54,178.53,0.63667147]
[1641094453781,5.60082892,178.55,178.53,0.63667147]
[1641094454282,1.75442657,178.54,178.53,0.63667147]
[1641094454983,5.60082892,178.55,178.53,0.63667147]
[1641094455585,1.7546054,178.54,178.53,0.63667147]
[1641094456185,5.60082892,178.55,178.53,0.63667147]
[1641094456786,1.75469652,178.54,178.53,0.63667147]
[1641094457287,1.75469652,178.54,178.53,5.11759141]
[1641094457487,17.53819504,178.55,178.53,5.11759141]
[1641094458090,5.60082892,178.55,178.54,0.63667147]
[1641094459794,5.60082892,178.55,178.54,5.45067147]
[1641094463296,7.33128594,178.57,178.54,5.45067147]
[1641094463897,7.33128594,178.57,178.55,0.63667147]
[1641094464700,27.66479,178.58,178.55,0.63667147]
[1641094465500,7.33181129,178.57,178.55,0.63667147]
[1641094465703,7.33181129,178.57,178.54,0.63667147]
[1641094472215,7.33181129,178.58,178.54,0.63667147]
[1641094472418,27.66479,178.57,178.54,0.63667147]
[1641094473319,16.87437805,178.56,178.54,0.63667147]
[1641094473819,1.7544758,178.55,178.54,0.63667147]
[1641094474820,13.69134051,178.56,178.54,0.63667147]
[1641094475120,11.93676413,178.55,178.54,0.63667147]
[1641094475621,9.08612194,178.56,178.54,0.63667147]
[1641094476422,11.93699577,178.55,178.54,0.63667147]
[1641094477023,9.08612194,178.56,178.54,0.63667147]
[1641094477822,11.93696237,178.55,178.54,0.63667147]
[1641094478624,11.93655132,178.56,178.54,0.63667147]
[1641094479133,11.93698572,178.55,178.54,0.63667147]
[1641094479927,9.08612194,178.56,178.54,0.63667147]
[1641094480426,11.93700124,178.55,178.54,0.63667147]
[1641094481231,27.66479,178.57,178.54,0.63667147]
[1641094481432,3.18318456,178.56,178.54,0.63667147]
[1641094481831,11.93700537,178.55,178.54,0.63667147]
[1641094482030,11.93700537,178.55,178.53,0.63667147]
[1641094482835,1.75457638,178.56,178.53,0.63667147]
[1641094483133,1.75457638,178.55,178.53,0.63667147]
[1641094483636,13.68511823,178.56,178.53,0.63667147]
[1641094485134,11.93138051,178.56,178.53,0.63667147]
[1641094485835,13.68511823,178.56,178.53,0.63667147]
[1641094486737,3.18340979,178.55,178.53,0.63667147]
[1641094487136,11.93138051,178.54,178.53,0.63667147]
[1641094487536,15.1147903,178.54,178.53,0.63667147]
[1641094487737,23.7837903,178.54,178.53,0.63667147]
[1641094487939,10.60614751,178.54,178.53,0.63667147]
[1641094488540,10.60614751,178.54,178.51,0.63667147]
[1641094488938,4.93714751,178.54,178.51,0.63667147]
[1641094489139,3.18340979,178.53,178.51,0.63667147]
[1641094489541,16.87042914,178.53,178.51,0.63667147]
[1641094489840,13.68701935,178.53,178.51,0.63667147]
[1641094490045,1.75373772,178.52,178.51,0.63667147]
[1641094490941,11.93328163,178.53,178.51,0.63667147]
[1641094491944,11.93328163,178.53,178.51,5.11819985]
[1641094492545,11.93328163,178.53,178.52,0.63667147]
[1641094492943,1.75443828,178.53,178.52,0.63667147]
[1641094493545,36.22479,178.57,178.52,0.63667147]
[1641094493946,3.1832624,178.56,178.52,0.63667147]
[1641094494347,11.93714002,178.55,178.52,5.11772719]
[1641094494749,7.45680917,178.55,178.52,3.63667147]
[1641094494949,7.45680917,178.55,178.53,0.63667147]
[1641094495148,7.33166744,178.56,178.53,0.63667147]
[1641094495350,3.97829105,178.55,178.53,2.26479159]
[1641094495751,3.97829105,178.55,178.54,0.63667147]
[1641094495950,7.33166744,178.6,178.54,0.63667147]
[1641094496151,1.71372258,178.59,178.54,4.61516535]
[1641094496752,3.1828098,178.58,178.55,0.63667147]
[1641094497852,1.71372258,178.57,178.55,0.63667147]
[1641094498654,1.71372258,178.57,178.55,3.63667147]
[1641094498854,1.71372258,178.57,178.55,0.63667147]
[1641094499056,7.33166744,178.6,178.56,0.63667147]
[1641094499456,7.33166744,178.6,178.57,3.0]
[1641094499655,7.33166744,178.6,178.59,3.0]
[1641094499856,27.66479,178.61,178.59,5.585]
[1641094500256,27.66479,178.61,178.6,4.4790378]
[1641094500458,27.66479,178.61,178.6,5.11570927]
[1641094500857,27.66479,178.61,178.6,8.11570927]
[1641094501056,27.66479,178.61,178.6,10.38060537]
[1641094501358,18.85649,178.61,178.6,7.38060537]
[1641094501656,5.59863393,178.62,178.6,2.90156757]
[1641094501860,27.66479,178.63,178.6,2.90156757]
[1641094502257,27.66479,178.63,178.61,0.63667147]
[1641094502661,5.59785043,178.65,178.61,0.63667147]
[1641094503356,3.1820983,178.64,178.59,0.63667147]
[1641094511972,3.1820983,178.64,178.59,5.11600723]
[1641094512575,3.1820983,178.64,178.6,0.63667147]
[1641094512978,1.64597852,178.63,178.6,0.63667147]
[1641094513376,3.1820983,178.64,178.6,0.63667147]
[1641094513577,5.59785043,178.65,178.6,0.63667147]
[1641094513977,4.82802314,178.64,178.6,0.63667147]
[1641094514579,4.82802314,178.63,178.6,0.63667147]
[1641094514978,1.64598507,178.63,178.6,0.63667147]
[1641094515180,1.64603101,178.62,178.6,0.63667147]
[1641094516177,29.31085408,178.64,178.6,0.63667147]
[1641094516379,29.31085408,178.64,178.6,5.1158711]
[1641094516781,7.82817729,178.63,178.6,0.63667147]
[1641094516979,3.0,178.62,178.6,0.63667147]
[1641094517179,4.82817729,178.63,178.6,0.63667147]
[1641094517380,3.18211321,178.62,178.59,0.63667147]
[1641094517579,4.82844964,178.62,178.59,0.63667147]
[1641094517781,1.64633643,178.62,178.59,0.63667147]
[1641094518381,3.18211321,178.61,178.59,0.63667147]
[1641094518880,1.64633764,178.6,178.59,0.63667147]
[1641094519481,57.60929,178.64,178.59,0.63667147]
[1641094519681,1.64635904,178.62,178.59,0.63667147]
[1641094520081,4.82868758,178.63,178.59,0.63667147]
[1641094520383,3.18232578,178.61,178.59,0.63667147]
[1641094520781,1.6463618,178.6,178.59,0.63667147]
[1641094521381,1.64636834,178.61,178.59,0.63667147]
[1641094521889,8.68743725,178.63,178.59,0.63667147]
[1641094522487,3.1823093,178.62,178.58,0.63667147]
[1641094522988,3.1823093,178.62,178.58,4.58616764]
[1641094523390,1.64637375,178.61,178.59,6.91597358]
[1641094523793,1.64637375,178.61,178.6,0.63667147]
[1641094524290,3.18232839,178.61,178.6,0.63667147]
[1641094524690,10.22193243,178.63,178.6,0.63667147]
[1641094524890,3.18232839,178.63,178.6,0.63667147]
[1641094525091,1.64571915,178.61,178.58,9.50116764]
[1641094525593,1.64571915,178.61,178.59,0.63667147]
[1641094525792,11.92696929,178.62,178.59,0.63667147]
[1641094526192,3.18226152,178.61,178.59,0.63667147]
[1641094526592,13.57307583,178.63,178.59,0.63667147]
[1641094526992,3.18225862,178.62,178.59,0.63667147]
[1641094527793,1.64610654,178.61,178.59,0.63667147]
[1641094528292,11.92696929,178.63,178.59,0.63667147]
[1641094528493,11.92696929,178.63,178.59,5.11612832]
[1641094528692,3.18226272,178.62,178.59,5.11612832]
[1641094529194,3.18226272,178.62,178.6,0.63667147]
[1641094529795,1.64605763,178.61,178.6,0.63667147]
[1641094530493,11.92696929,178.63,178.6,0.63667147]
[1641094530994,3.18223214,178.62,178.6,0.63667147]
[1641094531595,1.64583267,178.61,178.6,0.63667147]
[1641094532394,41.87106268,178.64,178.6,0.63667147]
[1641094532794,3.18230495,178.63,178.6,0.63667147]
[1641094532998,11.92656268,178.62,178.6,0.63667147]
[1641094533798,1.64628582,178.62,178.6,0.63667147]
[1641094534400,1.64575933,178.63,178.6,0.63667147]
[1641094535300,29.9445,178.64,178.6,0.63667147]
[1641094535507,11.93246788,178.63,178.6,0.63667147]
[1641094535701,15.11443396,178.63,178.6,0.63667147]
[1641094536103,3.18196608,178.62,178.6,0.63667147]
[1641094536302,4.82850057,178.62,178.6,0.63667147]
[1641094536702,1.64653449,178.62,178.6,0.63667147]
[1641094536905,1.6465369,178.61,178.6,0.63667147]
[1641094537404,1.64654202,178.63,178.6,0.63667147]
[1641094538204,3.18202774,178.62,178.6,0.63667147]
[1641094539109,3.18202774,178.63,178.6,0.63667147]
[1641094539311,1.64646676,178.62,178.6,0.63667147]
[1641094539911,3.18202774,178.63,178.6,4.58616764]
[1641094540110,41.87660855,178.64,178.6,4.58616764]
[1641094540410,3.18194044,178.63,178.61,0.63667147]
[1641094540611,4.82828679,178.63,178.61,0.63667147]
[1641094541014,1.64634635,178.63,178.61,0.63667147]
[1641094541615,29.9445,178.64,178.61,0.63667147]
[1641094541815,4.82840921,178.62,178.61,0.63667147]
[1641094542215,3.18201524,178.62,178.61,0.63667147]
[1641094542814,3.18201524,178.63,178.61,0.63667147]
[1641094543018,1.64571468,178.62,178.61,0.63667147]
[1641094543620,15.11426237,178.63,178.6,0.63667147]
[1641094544018,3.18201524,178.63,178.6,0.63667147]
[1641094544219,1.64567661,178.62,178.6,0.63667147]
[1641094545019,1.64567613,178.63,178.6,0.63667147]
[1641094545427,41.87115836,178.64,178.6,0.63667147]
[1641094545823,3.18199375,178.63,178.6,0.63667147]
[1641094546023,4.82767022,178.63,178.6,0.63667147]
[1641094546423,1.64567647,178.63,178.6,0.63667147]
[1641094546624,1.64566652,178.62,178.6,0.63667147]
[1641094546824,7.82766222,178.62,178.6,0.63667147]
[1641094547024,4.82766222,178.62,178.6,0.63667147]
[1641094547225,1.64571376,178.61,178.6,0.63667147]
[1641094548025,41.87115836,178.64,178.6,0.63667147]
[1641094548227,13.57249678,178.63,178.6,0.63667147]
[1641094548625,3.18205005,178.62,178.6,0.63667147]
[1641094549226,1.64581872,178.61,178.6,0.63667147]
[1641094550028,11.92707736,178.63,178.6,0.63667147]
[1641094550333,3.1820822,178.62,178.6,6.55067147]
[1641094550728,3.1820822,178.62,178.61,0.63667147]
[1641094551530,27.66479,178.66,178.62,1.29665484]
[1641094551733,11.92572888,178.65,178.62,1.29665484]
[1641094551931,11.92572888,178.65,178.61,0.63667147]
[1641094552130,11.92572888,178.65,178.6,9.86349617]
[1641094552335,11.92572888,178.65,178.6,12.86349617]
[1641094552534,11.92572888,178.65,178.61,3.0]
[1641094552734,30.2982,178.68,178.6,15.23835285]
[1641094552939,30.2982,178.68,178.62,0.63628801]
[1641094553433,3.18136083,178.67,178.61,0.63628801]
[1641094553634,3.18136083,178.67,178.63,6.27945429]
[1641094554237,15.1055607,178.67,178.63,3.94949617]
[1641094554639,3.18136083,178.66,178.64,0.63628801]
[1641094555239,15.11207773,178.66,178.64,0.63628801]
[1641094555741,3.18136083,178.65,178.63,0.63628801]
[1641094556141,11.93053438,178.67,178.65,0.63628801]
[1641094556539,3.18149128,178.66,178.63,0.63628801]